bitfinex-derivatives/quotes_ETHF0:USTF0_20250405
["timestamp","ask_amount","ask_price","bid_price","bid_amount"]
[1743818578768,2.99512,1821.9,1821.8,0.00822233]
[1743818579272,2.99512,1821.9,1821.8,0.77698233]
[1743818580573,2.99512,1821.9,1821.8,0.00822233]
[1743818580776,2.99512,1821.9,1821.8,0.77698233]
[1743818581178,2.99512,1821.9,1821.8,0.00822233]
[1743818583181,2.99512,1821.9,1821.8,0.77698233]
[1743818583377,2.99512,1821.9,1821.8,0.00822233]
[1743818585284,2.99512,1821.9,1821.8,0.77698233]
[1743818585485,2.99512,1821.9,1821.8,0.00822233]
[1743818587375,0.76888,1821.5,1821.3,6.69494]
[1743818587580,3.497,1821.4,1821.3,2.93494]
[1743818587885,5.0211,1821.4,1820.9,0.7691]
[1743818588086,6.1549,1821.3,1821.0,1.4738]
[1743818588279,2.29314,1821.2,1821.0,1.4738]
[1743818588484,5.0211,1821.1,1821.0,2.2429]
[1743818588688,5.79015,1821.1,1821.0,1.4738]
[1743818588985,8.99795,1821.1,1821.0,1.4738]
[1743818589194,8.99795,1821.1,1820.9,0.00822233]
[1743818589195,0.7691,1821.0,1820.9,0.00822233]
[1743818589377,2.9418,1821.0,1820.9,0.00822233]
[1743818591492,6.1496,1821.0,1820.9,0.00822233]
[1743818595994,4.6375,1821.0,1820.9,0.00822233]
[1743818596189,4.6375,1821.0,1820.9,2.17356233]
[1743818596391,4.6375,1821.0,1820.9,1.40442233]
[1743818596594,4.6375,1821.0,1820.9,2.17356233]
[1743818596892,5.4066,1821.0,1820.9,1.40442233]
[1743818597593,4.6375,1821.0,1820.9,2.17356233]
[1743818597990,5.4066,1821.0,1820.9,2.17356233]
[1743818598395,3.2078,1821.0,1820.9,2.17356233]
[1743818601492,5.68477,1821.1,1820.9,2.17356233]
[1743818601794,3.2078,1821.0,1820.9,2.17356233]
[1743818605993,2.18571,1821.2,1821.0,0.76906]
[1743818606195,3.498,1821.1,1821.0,2.1789]
[1743818608606,4.26705,1821.1,1821.0,2.1789]
[1743818609304,3.498,1821.1,1821.0,2.1789]
[1743818610504,3.93892233,1821.3,1821.2,0.76901]
[1743818610704,6.71402233,1821.3,1821.2,0.76901]
[1743818611307,3.21602233,1821.3,1821.2,0.76901]
[1743818611507,6.71402233,1821.3,1821.2,0.76901]
[1743818611806,7.48299233,1821.3,1821.2,0.76901]
[1743818612001,9.00779233,1821.3,1821.2,0.76901]
[1743818612209,8.23882233,1821.3,1821.2,0.76901]
[1743818612507,9.00779233,1821.3,1821.2,0.76901]
[1743818612700,8.23882233,1821.3,1821.2,0.76901]
[1743818615109,8.23882233,1821.3,1821.1,0.76903]
[1743818615304,9.00779233,1821.3,1821.1,0.76903]
[1743818615710,9.00779233,1821.3,1821.0,1.4098]
[1743818615909,9.00779233,1821.3,1821.1,0.76902]
[1743818616801,8.23882233,1821.3,1821.0,1.4098]
[1743818617009,9.00780233,1821.3,1821.1,0.76902]
[1743818617207,1.4363,1821.2,1821.1,0.76902]
[1743818621415,1.4363,1821.2,1821.0,0.7117]
[1743818621613,5.43058,1821.1,1820.9,0.00822233]
[1743818621917,5.7475,1821.0,1820.9,0.00822233]
[1743818622104,5.7475,1821.0,1820.9,0.77736233]
[1743818622308,5.7475,1821.0,1820.9,0.00822233]
[1743818622508,5.7475,1821.0,1820.9,0.77736233]
[1743818623107,5.7475,1821.0,1820.9,0.00822233]
[1743818628920,8.9553,1821.0,1820.9,0.00822233]
[1743818633625,8.9553,1821.0,1820.9,1.39572233]
[1743818634628,5.7475,1821.0,1820.9,1.39572233]
[1743818635127,8.9553,1821.0,1820.9,0.00822233]
[1743818638041,5.7475,1821.0,1820.9,0.00822233]
[1743818638340,8.9553,1821.0,1820.9,0.00822233]
[1743818643644,0.76922,1820.7,1820.6,0.7422]
[1743818643838,4.26722,1820.7,1820.6,2.191]
[1743818644044,0.76931,1820.5,1820.4,0.7319]
[1743818644243,3.97711,1820.5,1820.4,2.1807]
[1743818644440,3.97711,1820.5,1820.2,0.7532]
[1743818644441,0.76938,1820.4,1820.2,0.7532]
[1743818644638,0.76939,1820.3,1820.2,0.7532]
[1743818644832,1.48649,1820.3,1820.2,0.7532]
[1743818645143,5.365,1820.3,1820.1,2.18892233]
[1743818645340,0.76943,1820.2,1820.1,2.18892233]
[1743818645543,2.94123,1820.2,1820.1,2.18892233]
[1743818646338,2.94123,1820.2,1820.1,0.00822233]
[1743818646936,5.44123,1820.2,1820.1,0.00822233]
[1743818647444,5.540301,1820.2,1820.1,0.00822233]
[1743818648047,0.76956,1819.9,1819.8,1.5217]
[1743818648248,4.26756,1819.9,1819.8,1.5217]
[1743818648642,0.7696,1819.8,1819.7,0.7532]
[1743818648843,1.496,1819.8,1819.7,2.2749]
[1743818649243,0.76964,1819.7,1819.6,0.74462233]
[1743818649751,2.21264,1819.7,1819.6,0.00822233]
[1743818651253,4.71264,1819.7,1819.6,0.00822233]
[1743818651453,4.71264,1819.7,1819.3,2.2636]
[1743818651454,0.76977,1819.4,1819.3,2.2636]
[1743818651647,3.499,1819.4,1819.3,2.2636]
[1743818652151,4.26877,1819.4,1819.3,2.2636]
[1743818652356,3.499,1819.4,1819.0,3.2078]
[1743818652554,3.499,1819.4,1819.3,0.76981]
[1743818653053,3.499,1819.4,1819.3,2.21181]
[1743818654648,0.00824516,1819.5,1819.3,2.21181]
[1743818654855,0.00824516,1819.5,1819.4,2.21177]
[1743818654856,3.50824516,1819.5,1819.4,2.21177]
[1743818655353,3.50824516,1819.5,1819.4,1.442]
[1743818655555,4.27797516,1819.5,1819.4,1.442]
[1743818655853,3.50824516,1819.5,1819.4,2.21177]
[1743818656448,4.27797516,1819.5,1819.4,1.442]
[1743818656650,3.50824516,1819.5,1819.4,2.21177]
[1743818657849,0.00824516,1819.5,1819.4,2.21177]
[1743818658053,3.50824516,1819.5,1819.4,2.21177]
[1743818658759,3.50824516,1819.5,1819.4,1.442]
[1743818659058,3.50824516,1819.5,1819.4,2.21177]
[1743818660253,3.50824516,1819.5,1819.4,1.442]
[1743818660450,4.27797516,1819.5,1819.4,1.442]
[1743818660651,5.67047516,1819.5,1819.4,1.442]
[1743818661050,4.90074516,1819.5,1819.3,0.76979]
[1743818661251,2.1343,1819.4,1819.3,0.76979]
[1743818661558,2.1343,1819.4,1819.3,2.20449]
[1743818664049,2.90407,1819.4,1819.3,1.4347]
[1743818666464,2.1343,1819.4,1819.3,2.20451]
[1743818667763,2.9041,1819.4,1819.2,0.7362]
[1743818667964,6.1119,1819.4,1819.2,2.1554]
[1743818668264,5.3421,1819.4,1819.2,2.92526]
[1743818668759,5.3421,1819.4,1819.3,1.4192]
[1743818669066,6.11187,1819.4,1819.3,1.4192]
[1743818669263,5.3421,1819.4,1819.3,2.18901]
[1743818669563,6.11187,1819.4,1819.3,1.4192]
[1743818670767,0.76981,1819.3,1819.1,1.46657]
[1743818670957,0.76981,1819.3,1819.1,2.94417]
[1743818670958,3.501,1819.2,1819.1,2.94417]
[1743818672168,3.501,1819.2,1819.1,2.9442]
[1743818672965,5.0372,1819.2,1819.1,2.9442]
[1743818674568,5.0372,1819.2,1819.1,2.1743]
[1743818674771,5.80706,1819.2,1819.1,2.1743]
[1743818675669,5.0372,1819.2,1819.1,2.9442]
[1743818675970,5.80706,1819.2,1819.1,2.9442]
[1743818679463,5.0372,1819.2,1819.1,2.9442]
[1743818684177,0.00824516,1819.5,1819.4,0.76977]
[1743818684371,4.27897516,1819.5,1819.4,0.76977]
[1743818684675,4.27897516,1819.5,1819.3,2.17779]
[1743818684877,4.27897516,1819.5,1819.4,1.408]
[1743818685078,4.27897516,1819.5,1819.4,2.1425]
[1743818685974,5.70727516,1819.5,1819.4,2.1425]
[1743818686282,0.76979,1819.4,1819.2,1.51252]
[1743818686574,2.1223,1819.4,1819.2,1.51252]
[1743818686770,2.1223,1819.4,1819.3,1.4623]
[1743818686971,2.1223,1819.4,1819.3,2.23211]
[1743818687377,2.89207,1819.4,1819.3,1.4623]
[1743818687671,5.3301,1819.4,1819.1,0.744]
[1743818687876,0.76986,1819.2,1819.1,0.744]
[1743818688075,4.27086,1819.2,1819.0,5.44002]
[1743818688266,5.03936,1819.2,1819.0,6.18402]
[1743818688768,5.03936,1819.2,1819.1,1.4623]
[1743818690280,5.03936,1819.2,1819.1,2.23599959]
[1743818691079,5.03936,1819.2,1819.1,1.4623]
[1743818692170,8.24716,1819.2,1819.1,1.4623]
[1743818693082,0.7699,1819.1,1819.0,0.744]
[1743818693275,2.9397,1819.1,1819.0,1.51783172]
[1743818693475,2.9397,1819.1,1819.0,0.744]
[1743818693779,2.9397,1819.1,1819.0,3.00794]
[1743818693780,2.1698,1819.1,1819.0,3.00794]
[1743818693978,2.9397,1819.1,1819.0,3.01185663]
[1743818694178,2.9397,1819.1,1819.0,2.238]
[1743818695783,2.9397,1819.1,1819.0,3.00794]
[1743818695972,2.9397,1819.1,1819.0,3.78173142]
[1743818695973,2.1698,1819.1,1819.0,3.78173142]
[1743818696378,5.03937,1819.2,1819.0,3.78173142]
[1743818696584,5.03937,1819.2,1819.1,1.4871]
[1743818696883,4.27087,1819.2,1819.1,2.257]
[1743818697083,4.27087,1819.2,1819.1,1.4871]
[1743818697883,4.27087,1819.2,1819.1,2.257]
[1743818697884,3.501,1819.2,1819.1,2.257]
[1743818698085,4.27086,1819.2,1819.1,2.257]
[1743818698385,4.27086,1819.2,1819.1,1.4871]
[1743818698583,4.27086,1819.2,1819.1,2.257]
[1743818698987,4.27086,1819.2,1819.1,1.4871]
[1743818699687,3.501,1819.2,1819.1,2.257]
[1743818700083,4.27086,1819.2,1819.1,2.257]
[1743818700386,4.27086,1819.2,1819.1,1.4871]
[1743818702579,0.7699,1819.1,1819.0,0.744]
[1743818702783,3.6772,1819.1,1819.0,0.744]
[1743818703389,2.1416,1819.1,1819.0,1.51394]
[1743818703587,0.7427,1819.1,1819.0,2.99324]
[1743818703893,1.5126,1819.1,1819.0,2.2233]
[1743818704393,0.7427,1819.1,1819.0,2.99324]
[1743818704994,1.5126,1819.1,1819.0,2.99324]
[1743818705190,1.5126,1819.1,1819.0,2.2233]
[1743818705586,2.9704,1819.1,1819.0,2.2233]
[1743818705792,4.2709,1819.2,1819.0,2.99324]
[1743818705983,4.2709,1819.2,1819.1,1.3996]
[1743818707200,5.7078,1819.2,1819.1,1.3996]
[1743818709795,5.7078,1819.2,1819.0,0.744]
[1743818709796,0.7699,1819.1,1819.0,0.744]
[1743818709997,2.9044,1819.1,1819.0,0.744]
[1743818710397,2.9044,1819.1,1819.0,2.1502]
[1743818710593,0.76997,1819.0,1818.8,0.77001]
[1743818710805,3.501,1818.9,1818.8,0.77001]
[1743818711104,4.27098,1818.9,1818.8,0.77001]
[1743818712407,4.27098,1818.9,1818.7,2.17624]
[1743818712802,4.27098,1818.9,1818.8,1.4062]
[1743818713599,3.501,1818.9,1818.8,2.17623]
[1743818714206,4.27098,1818.9,1818.8,2.17623]
[1743818714708,4.27098,1818.9,1818.8,1.4062]
[1743818715002,6.7088,1818.9,1818.6,1.5167]
[1743818715209,0.77005,1818.8,1818.7,1.4436]
[1743818716301,0.77007,1818.7,1818.6,0.7637]
[1743818716698,0.77011,1818.6,1818.5,3.2078]
[1743818716898,3.501,1818.6,1818.5,6.13615]
[1743818718000,4.27111,1818.6,1818.5,5.366]
[1743818719706,4.27111,1818.6,1818.5,2.1582]
[1743818720011,5.70091,1818.6,1818.5,1.3994]
[1743818721007,4.9308,1818.6,1818.4,0.7142]
[1743818721201,5.70094,1818.6,1818.4,2.93469]
[1743818721707,0.77015,1818.5,1818.4,2.1645]
[1743818722407,2.22185,1818.5,1818.4,2.1645]
[1743818723208,2.92025,1818.5,1818.4,1.4503]
[1743818724004,0.77021,1818.4,1818.2,1.48046]
[1743818724201,0.77036,1818.0,1817.9,0.7172]
[1743818724406,7.48016,1818.0,1817.9,0.7172]
[1743818724701,7.48016,1818.0,1817.8,2.1499]
[1743818724702,0.77041,1817.9,1817.8,2.1499]
[1743818725010,0.77041,1817.9,1817.2,16.37678707]
[1743818725011,0.77047,1817.8,1817.5,1.48774]
[1743818725210,0.77047,1817.8,1817.7,1.4397]
[1743818725399,0.77053,1817.6,1817.5,0.7172]
[1743818725708,0.77058,1817.5,1817.4,1.536]
[1743818725912,5.659,1817.5,1817.2,8.52405707]
[1743818726107,0.77066,1817.3,1817.2,8.52405707]
[1743818726506,4.66086,1817.3,1817.2,8.52405707]
[1743818726710,0.7707,1817.2,1817.1,6.0745225]
[1743818726913,0.77078,1817.1,1816.7,2.3069]
[1743818727108,0.77085,1816.9,1816.6,0.7172]
[1743818727311,4.9292,1816.8,1816.5,9.40658329]
[1743818727507,8.137,1816.8,1816.6,1.536]
[1743818727708,4.9292,1816.8,1816.6,1.536]
[1743818728311,4.9292,1816.8,1816.6,2.30694]
[1743818728512,6.7468,1816.8,1816.6,2.30694]
[1743818728709,3.539,1816.8,1816.7,2.91092]
[1743818729614,3.539,1817.1,1817.0,0.77079]
[1743818729804,0.00824516,1817.4,1817.0,2.5]
[1743818730116,3.55424516,1817.4,1817.3,0.77066]
[1743818730319,3.55424516,1817.4,1817.2,2.18467]
[1743818730519,3.55424516,1817.4,1817.3,2.18466]
[1743818731318,7.53267516,1817.4,1817.1,1.4491]
[1743818731515,1.4349,1817.3,1817.1,1.49673]
[1743818731715,2.1346,1817.3,1817.1,1.49673]
[1743818732111,1.4349,1817.2,1817.1,1.49673]
[1743818732614,1.4349,1817.2,1817.1,0.726]
[1743818732818,1.4349,1817.2,1817.1,1.49675]
[1743818734516,3.21604516,1817.4,1817.1,0.726]
[1743818734815,0.00824516,1817.4,1817.3,3.97846]
[1743818735012,0.00824516,1817.4,1817.3,4.74576]
[1743818735215,3.56224516,1817.4,1817.3,1.53796]
[1743818735517,3.56224516,1817.4,1817.2,2.30638]
[1743818735816,5.70944516,1817.4,1817.3,0.77066]
[1743818736113,5.70944516,1817.4,1817.2,1.5357]
[1743818736319,5.70944516,1817.4,1817.2,2.30637]
[1743818736515,1.3893,1817.3,1817.2,2.30637]
[1743818738018,2.15996,1817.3,1817.2,1.5357]
[1743818738219,2.15996,1817.3,1817.1,1.49672]
[1743818738414,7.52794516,1817.4,1817.1,1.49672]
[1743818738415,1.484,1817.2,1817.1,3.03242]
[1743818739119,4.32014516,1817.4,1817.3,0.77066]
[1743818739319,5.80414516,1817.4,1817.3,0.77066]
[1743818739520,6.57478516,1817.4,1817.2,2.30638]
[1743818739721,1.484,1817.3,1817.2,2.30638]
[1743818742923,2.25466,1817.3,1817.2,1.5357]
[1743818743124,7.52794516,1817.4,1817.3,0.77066]
[1743818743422,6.77004516,1817.4,1817.3,0.77066]
[1743818744223,3.56124516,1817.4,1817.3,0.77066]
[1743818744726,3.57024516,1817.4,1817.3,0.77066]
[1743818745420,0.00824516,1817.4,1817.3,3.27066]
[1743818745725,3.561,1817.6,1817.5,0.77058]
[1743818746327,3.561,1817.6,1817.5,2.22858]
[1743818746918,4.33153,1817.6,1817.5,1.458]
[1743818747119,3.561,1817.6,1817.5,2.22858]
[1743818747322,5.0442,1817.6,1817.5,2.22858]
[1743818747522,3.561,1817.6,1817.5,2.22858]
[1743818751527,0.00824516,1817.7,1817.6,0.77053]
[1743818751724,0.00824516,1817.7,1817.6,5.51613]
[1743818756830,2.23824516,1817.7,1817.6,3.97833]
[1743818757631,3.00873516,1817.7,1817.6,3.97833]
[1743818757834,2.23824516,1817.7,1817.4,1.4654]
[1743818758137,0.77058,1817.5,1817.4,1.4654]
[1743818758441,0.77058,1817.5,1817.3,0.77064]
[1743818758633,1.4754,1817.4,1817.3,0.77064]
[1743818760832,3.97834,1817.6,1817.4,0.77058]
[1743818761032,5.0493,1817.5,1817.4,0.77058]
[1743818762440,3.57,1817.5,1817.4,0.77058]
[1743818762630,3.57,1817.5,1817.4,3.05918]
[1743818765044,3.57,1817.5,1817.4,2.29338]
[1743818765341,5.0189,1817.5,1817.4,2.29338]
[1743818765545,3.57,1817.5,1817.4,2.29338]
[1743818765738,4.6567,1817.6,1817.5,0.77058]
[1743818765937,6.7768,1817.6,1817.5,2.25998]
[1743818768151,8.2399,1817.6,1817.5,2.25998]
[1743818768551,9.01043,1817.6,1817.5,2.25998]
[1743818769051,8.2399,1817.6,1817.5,2.25998]
[1743818771853,9.01043,1817.6,1817.5,2.25998]
[1743818772152,8.2399,1817.6,1817.5,2.25998]
[1743818777260,9.01043,1817.6,1817.5,2.25998]
[1743818777447,9.01043,1817.6,1817.5,1.4894]
[1743818777651,9.01043,1817.6,1817.5,2.25998]
[1743818777855,8.2399,1817.6,1817.5,2.25998]
[1743818783070,9.01043,1817.6,1817.5,2.25998]
[1743818783369,8.2399,1817.6,1817.5,2.25998]
[1743818784569,6.7768,1817.6,1817.5,2.25998]
[1743818784871,0.00824516,1817.7,1817.6,0.77053]
[1743818785064,0.00824516,1817.7,1817.6,3.01933]
[1743818785065,3.55824516,1817.7,1817.6,3.01933]
[1743818785470,3.56024516,1817.7,1817.6,3.01933]
[1743818787873,3.56024516,1817.7,1817.6,2.27893]
[1743818788466,5.80624516,1817.7,1817.6,2.27893]
[1743818789172,3.56024516,1817.7,1817.6,2.27893]
[1743818796777,5.01704516,1817.7,1817.6,2.27893]
[1743818797175,6.53614516,1817.7,1817.6,2.27893]
[1743818798078,6.53614516,1817.7,1817.6,0.77053]
[1743818798380,7.30665516,1817.7,1817.5,3.9284]
[1743818798573,1.4914,1817.6,1817.5,0.77058]
[1743818799481,2.26193,1817.6,1817.5,0.77058]
[1743818799679,2.26193,1817.6,1817.4,2.98709]
[1743818799868,1.4914,1817.5,1817.4,2.98709]
[1743818801884,1.4914,1817.5,1817.4,2.22229]
[1743818805983,5.84986516,1817.7,1817.5,0.77056]
[1743818806183,0.77053,1817.6,1817.5,2.26326]
[1743818806377,1.4215,1817.6,1817.5,2.26326]
[1743818806685,5.84986516,1817.7,1817.5,2.26326]
[1743818806686,2.29786516,1817.7,1817.5,2.26326]
[1743818806885,3.546,1817.6,1817.5,0.77056]
[1743818807482,2.95696516,1817.7,1817.3,3.9537]
[1743818807686,3.546,1817.6,1817.5,0.77058]
[1743818809489,2.95696516,1817.7,1817.3,3.9537]
[1743818809490,2.18644516,1817.7,1817.6,0.77053]
[1743818809691,3.55324516,1817.7,1817.6,0.77053]
[1743818810388,4.99534516,1817.7,1817.6,0.77053]
[1743818811491,4.99534516,1817.7,1817.3,3.9537]
[1743818811690,4.99534516,1817.7,1817.6,0.77053]
[1743818812585,5.76583516,1817.7,1817.5,0.77054]
[1743818812787,5.76583516,1817.7,1817.3,3.9537]
[1743818812989,0.77055,1817.6,1817.4,0.77059]
[1743818813188,0.7422,1817.5,1817.4,0.77059]
[1743818813391,2.1549,1817.6,1817.5,0.77058]
[1743818813592,1.4392,1817.6,1817.5,0.77058]
[1743818814290,4.29544516,1817.7,1817.6,0.77053]
[1743818814490,4.29544516,1817.7,1817.3,3.9537]
[1743818814691,5.70434516,1817.7,1817.6,0.77053]
[1743818814894,6.42634516,1817.7,1817.6,0.77053]
[1743818815589,5.70434516,1817.7,1817.6,0.77053]
[1743818815989,3.55324516,1817.7,1817.6,0.77053]
[1743818818197,0.00824516,1817.7,1817.6,0.77053]
[1743818819589,0.00824516,1817.7,1817.6,1.54415783]
[1743818820390,0.00824516,1817.7,1817.6,0.77053]
[1743818820696,1.39264516,1817.7,1817.6,0.77053]
[1743818820995,2.88453516,1817.7,1817.6,0.77053]
[1743818821198,2.11404516,1817.7,1817.6,0.77053]
[1743818821494,2.11404516,1817.7,1817.5,0.77055]
[1743818821694,2.1522,1817.6,1817.5,0.77055]
[1743818822595,2.92273,1817.6,1817.5,0.77055]
[1743818822792,2.1522,1817.6,1817.5,0.77055]
[1743818822993,5.6922,1817.6,1817.5,0.77055]
[1743818824496,6.46273,1817.6,1817.5,0.77055]
[1743818824693,0.77058,1817.5,1817.4,2.27319]
[1743818824894,1.5126,1817.5,1817.4,0.77059]
[1743818825791,1.5126,1817.5,1817.4,2.17059]
[1743818833003,2.28318,1817.5,1817.3,4.72433]
[1743818833196,0.7261,1817.4,1817.3,3.97843]
[1743818833500,2.2516,1817.4,1817.3,3.97843]
[1743818833700,2.2516,1817.4,1817.3,5.45333]
[1743818835900,0.77058,1817.5,1817.4,0.77059]
[1743818836104,7.22537,1817.6,1817.4,3.04189]
[1743818836292,1.387,1817.5,1817.4,3.04189]
[1743818836495,2.15758,1817.5,1817.4,3.04189]
[1743818836895,2.15758,1817.5,1817.4,0.77059]
[1743818838605,2.15758,1817.5,1817.3,6.24973]
[1743818838802,1.4757,1817.4,1817.3,6.24973]
[1743818841203,5.83836,1817.6,1817.4,0.7706]
[1743818841404,0.77058,1817.5,1817.4,2.208]
[1743818841607,0.77066,1817.3,1817.2,0.00824516]
[1743818841806,7.50546,1817.3,1817.2,0.00824516]
[1743818842401,8.98596,1817.3,1817.2,0.00824516]
[1743818844402,7.50546,1817.3,1817.2,0.00824516]
[1743818844603,7.50546,1817.3,1817.2,2.21694516]
[1743818852508,7.50546,1817.3,1817.2,1.51414516]
[1743818855410,7.50546,1817.3,1817.2,0.00824516]
[1743818857613,7.50546,1817.3,1817.2,1.40594516]
[1743818861711,3.527,1817.3,1817.2,2.17664516]
[1743818862015,3.527,1817.3,1817.2,1.40594516]
[1743818862711,4.29766,1817.3,1817.2,1.40594516]
[1743818865712,0.77066,1817.3,1817.2,2.17664516]
[1743818865916,3.97845,1817.4,1817.3,0.77066]
[1743818866117,7.49045,1817.4,1817.3,2.96056]
[1743818866519,0.77061,1817.5,1817.4,0.77062]
[1743818866713,0.77061,1817.5,1817.4,1.49912]
[1743818867221,4.29474516,1817.7,1817.5,0.77058]
[1743818867415,4.29474516,1817.7,1817.6,0.7187]
[1743818869219,0.77053,1817.6,1817.4,1.49909]
[1743818869423,0.77053,1817.6,1817.5,0.7187]
[1743818869618,0.77053,1817.6,1817.5,1.48928]
[1743818870120,5.76846516,1817.7,1817.5,1.48928]
[1743818870321,4.29476516,1817.7,1817.5,1.48928]
[1743818872122,0.77053,1817.6,1817.5,1.48928]
[1743818872728,4.29476516,1817.7,1817.5,1.48928]
[1743818873031,0.77053,1817.6,1817.5,1.48928]
[1743818873329,4.29476516,1817.7,1817.5,1.48928]
[1743818876037,0.77053,1817.6,1817.5,0.7187]
[1743818876224,2.22633,1817.6,1817.5,0.7187]
[1743818876524,2.22633,1817.6,1817.5,1.48928]
[1743818876732,2.22633,1817.6,1817.5,0.7187]
[1743818877425,2.22633,1817.6,1817.5,1.48928]
[1743818877832,1.4558,1817.6,1817.5,1.48928]
[1743818878130,4.29476516,1817.7,1817.5,1.48928]
[1743818878522,5.77146516,1817.7,1817.5,1.48928]
[1743818878824,0.77053,1817.6,1817.5,1.48928]
[1743818879023,5.77146516,1817.7,1817.5,1.48928]
[1743818879227,5.00094516,1817.7,1817.4,1.4991]
[1743818879426,2.9663,1817.6,1817.4,1.4991]
[1743818879630,0.77058,1817.5,1817.4,1.4991]
[1743818880232,3.73687,1817.6,1817.4,1.4991]
[1743818882028,3.73687,1817.6,1817.5,0.77058]
[1743818882234,2.99337,1817.6,1817.5,0.77058]
[1743818883732,2.99337,1817.6,1817.5,2.21658]
[1743818885836,2.99337,1817.6,1817.5,1.446]
[1743818886530,0.77058,1817.5,1817.4,1.49909]
[1743818886928,2.21988,1817.5,1817.3,2.29753]
[1743818887126,0.711,1817.4,1817.3,2.29753]
[1743818887338,2.93092,1817.4,1817.3,2.29753]
[1743818887637,0.77066,1817.3,1817.2,0.00824516]
[1743818887828,2.1989,1817.3,1817.2,0.77894516]
[1743818888028,2.96956,1817.3,1817.2,0.77894516]
[1743818889031,2.96956,1817.3,1817.2,0.00824516]
[1743818892542,2.96956,1817.3,1817.2,0.77894516]
[1743818893537,2.96956,1817.3,1817.2,2.23194516]
[1743818894440,2.1989,1817.3,1817.2,2.23194516]
[1743818894939,2.96956,1817.3,1817.2,2.23194516]
[1743818895440,2.1989,1817.3,1817.2,2.23194516]
[1743818896532,3.507,1817.4,1817.3,0.77066]
[1743818896740,3.507,1817.4,1817.3,2.21556]
[1743818903843,3.9203,1817.6,1817.3,2.21556]
[1743818903844,3.9203,1817.6,1817.4,0.77062]
[1743818904046,7.4273,1817.6,1817.4,2.95512]
[1743818904240,0.77058,1817.5,1817.4,2.95512]
[1743818904637,2.18998,1817.5,1817.4,2.95512]
[1743818904843,1.4194,1817.5,1817.4,2.95512]
[1743818905048,3.507,1817.6,1817.5,0.77058]
[1743818905245,3.507,1817.6,1817.5,2.25838]
[1743818906544,2.15614516,1817.7,1817.6,0.77053]
[1743818906751,3.51524516,1817.7,1817.6,2.99573]
[1743818911754,4.28573516,1817.7,1817.6,2.2252]
[1743818911952,5.81733516,1817.7,1817.6,2.2252]
[1743818912350,1.53984516,1817.7,1817.6,2.99573]
[1743818912852,0.00824516,1817.7,1817.6,2.99573]
[1743818923766,1.52924516,1817.7,1817.6,2.99573]
[1743818931163,0.00824516,1817.7,1817.6,2.99573]
[1743818931669,0.00824516,1817.7,1817.6,3.76904199]
[1743818935471,0.00824516,1817.7,1817.6,3.7695818]
[1743818939078,0.00824516,1817.7,1817.6,2.99573]
[1743818939372,0.00824516,1817.7,1817.6,3.77002925]
[1743818939565,0.00824516,1817.7,1817.6,2.99573]
[1743818941371,0.00824516,1817.7,1817.6,3.77004672]
[1743818941574,0.70194516,1817.7,1817.6,2.99573]
[1743818941775,0.77056,1817.6,1817.4,1.53699]
[1743818941966,1.4111,1817.5,1817.4,0.77059]
[1743818942171,2.18171,1817.5,1817.2,0.72044516]
[1743818942373,0.7473,1817.4,1817.3,0.77065]
[1743818942671,2.1584,1817.4,1817.3,0.77065]
[1743818948072,2.1584,1817.4,1817.3,2.29005]
[1743818948274,7.4085,1817.6,1817.5,0.77058]
[1743818948474,0.00824516,1817.7,1817.6,0.77053]
[1743818949585,1.42734516,1817.7,1817.6,0.77053]
[1743818950386,1.42734516,1817.7,1817.6,2.28993]
[1743818951583,0.00824516,1817.7,1817.6,2.28993]
[1743818955188,1.46424516,1817.7,1817.6,2.28993]
[1743818956579,2.23473516,1817.7,1817.6,1.5194]
[1743818956989,1.46424516,1817.7,1817.6,2.28993]
[1743818957196,0.00824516,1817.7,1817.6,2.28993]
[1743818968401,0.00824516,1817.7,1817.6,6.27081069]
[1743818971202,36.60834,1818.6,1818.2,0.77028]
[1743818971203,34.683,1818.6,1818.2,0.77028]
[1743818971497,5.3692,1818.5,1818.4,0.7702]
[1743818971701,0.7184,1818.5,1818.3,0.77021]
[1743818971900,1.48856,1818.5,1818.3,0.77021]
[1743818972101,1.4801,1818.4,1818.3,0.77021]
[1743818972304,1.4801,1818.4,1818.3,2.18431]
[1743818972804,0.7184,1818.5,1818.4,0.7702]
[1743818973007,0.7184,1818.5,1818.4,2.1843]
[1743818978914,2.1918,1818.5,1818.4,2.1843]
[1743818980307,2.96195,1818.5,1818.3,0.7702]
[1743818980510,1.4734,1818.4,1818.3,0.7702]
[1743818981519,1.4734,1818.4,1818.3,2.156]
[1743818983622,0.7184,1818.5,1818.4,0.7702]
[1743818983821,0.7184,1818.5,1818.4,2.156]
[1743818984222,2.1497,1818.5,1818.4,2.156]
[1743818985516,3.51324516,1818.6,1818.5,0.77015]
[1743818985724,6.45584516,1818.6,1818.5,0.77015]
[1743818987824,7.22595516,1818.6,1818.5,0.77015]
[1743818989728,7.22595516,1818.6,1818.4,0.77016]
[1743818990028,1.5058,1818.5,1818.4,0.77016]
[1743818994029,2.27595,1818.5,1818.4,0.77016]
[1743818994632,1.5058,1818.5,1818.4,0.77016]
[1743818998932,1.5058,1818.5,1818.3,2.21573]
[1743818998933,0.7702,1818.4,1818.3,2.21573]
[1743819001437,2.202,1818.4,1818.3,2.21573]
[1743819001627,0.77024,1818.3,1818.2,0.00824516]
[1743819001823,0.77043,1817.9,1817.7,3.97827]
[1743819002137,4.27437,1818.0,1817.9,0.77041]
[1743819002340,4.27437,1818.0,1817.9,2.94861]
[1743819002627,3.504,1818.0,1817.9,2.94861]
[1743819004634,3.504,1818.0,1817.9,3.64911]